Cogmind - Beta 13 X1 @@@ ROGUE MODE // 2023.08.01 @ 19:08:29 Player: Schmee Result: Destroyed by LY-DRI(R) with Subdweller Machine Gun Performance ------------- Evolutions (0) 0 Regions Visited (3) 600 Robots Destroyed (31) 155 Value Destroyed (691) 691 Prototype IDs (2) 40 Alien Tech Used (0) 0 Bonus (0) 0 TOTAL SCORE: 1486 Bonus ------- None Cogmind --------- Core Integrity 0/250 Matter 236/300 Energy 59/125 System Corruption 0% Temperature Cool (0) Movement Walking (260) Ox2 Location -10/Subcaves Parts ------- > --- POWER (1) -------- Light Ion Engine > --- PROPULSION (2) --- Aluminum Leg Aluminum Leg > --- UTILITY (2) ------ High-capacity Storage Unit Seismic Detector > --- WEAPON (2) ------- Light EM Pulse Cannon Mining Claw > --- INVENTORY (20) --- Light Ion Engine Aluminum Leg Heat Sink Medium Matter Pod (100) Large Matter Pod (150) Large Matter Pod (150) High-capacity Matter Pod (200) Sensor Array Signal Interpreter Improved Terrain Scanner Targeting Computer Field Recycling Unit (0) Heavy EM Pulse Gun Light EM Pulse Cannon Light EM Pulse Cannon Subdweller Machine Gun Battle Cannon Peak State ------------ > --- POWER ------------ Light Ion Engine > --- PROPULSION ------- Aluminum Leg Aluminum Leg > --- UTILITY ---------- High-capacity Storage Unit Seismic Detector > --- WEAPON ----------- Light EM Pulse Cannon Light EM Pulse Cannon > --- INVENTORY -------- Ion Engine Light Ion Engine Light Treads Light Treads Aluminum Leg Wheel Heat Sink Medium Matter Pod Medium Matter Pod High-capacity Matter Pod Sensor Array Signal Interpreter Improved Terrain Scanner Targeting Computer Field Recycling Unit Heavy EM Pulse Gun Light EM Pulse Cannon Light EM Pulse Cannon Mining Claw [Rating: 11] Favorites ----------- Power Light Ion Engine Engine Light Ion Engine Propulsion Aluminum Leg Treads Light Treads Leg Aluminum Leg Wheel Wheel Utility High-capacity Storage Unit Device Seismic Detector Storage High-capacity Storage Unit Weapon Light EM Pulse Cannon Energy Gun Medium Laser Energy Cannon Light EM Pulse Cannon Ballistic Gun Assault Rifle Ballistic Cannon Battle Cannon Slashing Weapon Mining Claw Build | -11 -10 -10 -10 ------- Run | Jun Mat Min Sub Slots Evolved . | . . . . Power . | . . . . Propulsion . | . . . . Utility . | . . . . Weapon . | . . . . Parts Attached 31 | 1 13 4 13 Power 5 | . 3 . 2 Engine 5 | . 3 . 2 Core . | . . . . Reactor . | . . . . Propulsion 9 | . 3 3 3 Treads 2 | . . 2 . Leg 6 | . 3 1 2 Wheel 1 | . . . 1 Hover . | . . . . Flight . | . . . . Utility 4 | 1 1 . 2 Device 3 | 1 . . 2 Storage 1 | . 1 . . Processor . | . . . . Hackware . | . . . . Protection . | . . . . Artifact . | . . . . Weapon 13 | . 6 1 6 Energy Gun 3 | . 2 . 1 Energy Cannon 4 | . 1 1 2 Ballistic Gun 1 | . 1 . . Ballistic Cannon 1 | . . . 1 Launcher . | . . . . Special Weapon . | . . . . Impact Weapon . | . . . . Slashing Weapon 4 | . 2 . 2 Piercing Weapon . | . . . . Special Melee Weapon . | . . . . Unidentified Prototypes . | . . . . Parts Lost 7 | . 1 1 5 Power 2 | . 1 . 1 Propulsion 3 | . . . 3 Utility . | . . . . Weapon 2 | . . 1 1 Highest Loss Streak 3 | . 1 1 3 To Critical Strikes 1 | . . . 1 Average Slot Usage (%) 99 | . 99 98 99 Engine 13 | . 13 14 14 Treads 8 | . . 23 22 Leg 17 | . 28 3 . Wheel 1 | . . . 5 Device 14 | . 14 14 14 Storage 14 | . 14 14 14 Energy Gun 13 | . 16 . 9 Energy Cannon 11 | . 9 28 13 Ballistic Gun 1 | . 1 . . Slashing Weapon 1 | . . . 4 Naked Turns . | . . . . Heaviest Build 54 | 12 50 52 54 Greatest Support 40 | 20 20 40 40 Greatest Overweight (x) 5 | . 2 5 5 Average Overweight (x) 2 | . 1 1 2 Largest Inventory Capacity 20 | 8 20 20 20 Average Capacity 19 | 8 19 20 20 Most Carried 20 | 7 20 20 20 Average Carried 18 | 6 17 19 19 Final Capacity 20 | 8 20 20 20 Final Carried 20 | 7 20 20 17 Class Distribution -------------------- 100% | Mutant Dominant Class ---------------- Mutant | -10/Materials Mutant | -10/Mines Mutant | -10/Subcaves Resources | -11 -10 -10 -10 ----------- Run | Jun Mat Min Sub Matter Collected 1281 | 200 454 340 287 Remotely . | . . . . Salvage Created 1010 | 150 575 52 233 Parts 64 | 10 39 5 10 Haulers Intercepted . | . . . . Recyclers Shooed 3 | . 3 . . Parts Field Recycled . | . . . . Retrieved Matter . | . . . . Parts Self-Destructed 8 | . . . 8 Prevented . | . . . . Kills | -11 -10 -10 -10 ------- Run | Jun Mat Min Sub Combat Hostiles Destroyed 23 | . 15 3 5 Guns 12 | . 12 . . Cannons 8 | . 2 3 3 AOE 1 | . 1 . . Classes Destroyed 6 | 2 3 . 1 Tunneler 4 | 3 1 . . Recycler 1 | 1 . . . Watcher 3 | . 3 . . Swarmer 9 | . 6 3 . Grunt 9 | . 9 . . Subdweller 5 | . . . 5 Best Kill Streak 4 | 2 4 3 1 Combat Bots Only 4 | . 4 3 1 Max Kills in Single Turn 2 | 1 2 1 1 Gunslinging . | . . . . Exploded 1 | . 1 . . Melee . | . . . . Uniques/NPCs Destroyed . | . . . . Combat | -11 -10 -10 -10 -------- Run | Jun Mat Min Sub Damage Taken 1344 | . 486 46 812 Core 265 | . 95 10 160 Absorbed by Shields . | . . . . Core Remaining (%) 100 | 100 . . . Volleys Fired 78 | 4 48 3 23 Largest 2 | 2 2 2 2 Hottest 112 | 90 106 112 112 Shots Fired 145 | 8 95 5 37 Gun 99 | 8 82 1 8 Cannon 46 | . 13 4 29 Launcher . | . . . . Special . | . . . . Kinetic 10 | . 7 . 3 Thermal 84 | 8 75 1 . Explosive . | . . . . Electromagnetic 51 | . 13 4 34 Robot Hit Streak 9 | 6 8 3 9 Robot Miss Streak 3 | . 3 1 1 Penetration Max . | . . . . Secondary Targets . | . . . . Shots Hit Robots 96 | 6 57 3 30 Core Hits 45 | 5 29 3 8 Critical Kills . | . . . . Critical Parts Destroyed . | . . . . Critical Strikes 4 | 2 2 . . Burn 4 | 2 2 . . Melee Attacks 18 | . 10 . 8 Impact . | . . . . Slashing 18 | . 10 . 8 Piercing . | . . . . Sneak Attacks . | . . . . Combat Hostiles . | . . . . Follow-up Attacks . | . . . . Damage Inflicted 1654 | 69 910 69 606 Guns 738 | 69 580 12 77 Cannons 745 | . 246 57 442 Explosions 109 | . 73 . 36 Melee 51 | . . . 51 Ramming 11 | . 11 . . Kinetic 63 | . 20 . 43 Thermal 750 | 69 633 12 36 Explosive . | . . . . Electromagnetic 779 | . 246 57 476 Impact . | . . . . Slashing 51 | . . . 51 Piercing . | . . . . Highest Corruption . | . . . . Average Corruption . | . . . . Corruption Purged . | . . . . Corruption Blocked . | . . . . Overload Shots . | . . . . Overflow Damage 2 | . 2 . . Projectiles . | . . . . Explosions . | . . . . Melee 2 | . 2 . . Knockbacks 1 | . . . 1 Impact . | . . . . Kinetic 1 | . . . 1 Secondary . | . . . . Self-Inflicted Damage 28 | . 28 . . Shots 1 | . 1 . . Rammed . | . . . . Targets Rammed 3 | . 3 . . Kicked 3 | . 3 . . Crushed . | . . . . Highest Temperature 420 | 60 420 61 3 Average Temperature 93 | 24 105 32 3 Received Heat Transfer 225 | . 159 . 66 Effects 2 | . 2 . . Shutdowns 1 | . 1 . . Matter Decay 1 | . 1 . . Siege Activations . | . . . . Robots Corrupted 2 | . . . 2 Combat Hostiles 2 | . . . 2 Parts Fried 2 | . . . 2 Impact Corruptions 1 | . 1 . . Robots Melted . | . . . . Combat Hostiles . | . . . . Parts Melted 4 | 2 2 . . Heat Transferred 2154 | 346 1721 37 50 Parts Sabotaged . | . . . . Parts Stolen . | . . . . Parts Stripped . | . . . . Power Chain Reactions 2 | . 1 . 1 Missiles Intercepted . | . . . . Alert | -11 -10 -10 -10 ------- Run | Jun Mat Min Sub Peak Influence 203 | 20 203 60 . Initial 13 | . 13 . . Average 39 | 10 38 59 . Maximum Alert Level 1 | . 1 . . Low Security (%) 94 | 100 93 100 . Level 1 5 | . 6 . . Level 2 . | . . . . Level 3 . | . . . . Level 4 . | . . . . Level 5 . | . . . . High Security . | . . . . Max Security . | . . . . Squads Dispatched 4 | . 4 . . Investigation 1 | . 1 . . Extermination . | . . . . Reinforcement 3 | . 3 . . Assault . | . . . . Garrison . | . . . . Intercept . | . . . . Searches Triggered . | . . . . Construction Impeded . | . . . . Haulers Reinforced . | . . . . Active Scanning Responses . | . . . . Cargo Convoy Interrupts . | . . . . Stealth | -11 -10 -10 -10 --------- Run | Jun Mat Min Sub Distress Signals 1 | . 1 . . Communications Jammed . | . . . . Distress Signals . | . . . . Times Spotted 39 | . 30 2 7 Peak Tracking Total 4 | . 4 2 3 Tactical Retreats 1 | . 1 . . Traps | -11 -10 -10 -10 ------- Run | Jun Mat Min Sub Traps Triggered 3 | . 2 . 1 Indirectly . | . . . . Trap Hack Attempts . | . . . . Triggered . | . . . . Disarmed . | . . . . Reprogrammed . | . . . . Reused . | . . . . Traps Extracted . | . . . . Installed . | . . . . Triggered . | . . . . Machines | -11 -10 -10 -10 ---------- Run | Jun Mat Min Sub Machines Disabled . | . . . . Max in Single Turn . | . . . . Machines Repaired . | . . . . Machines Sabotaged . | . . . . Overloaded Fab Kills . | . . . . Hacking | -11 -10 -10 -10 --------- Run | Jun Mat Min Sub Machines Accessed 4 | . 4 . . Terminals 4 | . 4 . . Fabricators . | . . . . Repair Stations . | . . . . Recycling Units . | . . . . Scanalyzers . | . . . . Garrison Access . | . . . . Total Hacks 5 | . 5 . . Successful 3 | . 3 . . Failed 2 | . 2 . . Catastrophic 1 | . 1 . . Database Lockouts . | . . . . Manual 1 | . 1 . . Terminals 5 | . 5 . . Fabricators . | . . . . Repair Stations . | . . . . Recycling Units . | . . . . Scanalyzers . | . . . . Garrison Access . | . . . . Terminal Hacks 3 | . 3 . . Robot Analysis 1 | . 1 . . Prototype ID Bank 1 | . 1 . . Maintenance Status 1 | . 1 . . Fabricator Hacks . | . . . . Repair Station Hacks . | . . . . Recycling Unit Hacks . | . . . . Scanalyzer . | . . . . Garrison Access Hacks . | . . . . Unauthorized Hacks . | . . . . Terminals . | . . . . Fabricators . | . . . . Repair Stations . | . . . . Recycling Units . | . . . . Scanalyzers . | . . . . Garrison Access . | . . . . Data Cores Recovered . | . . . . Used . | . . . . Hacking Detections 1 | . 1 . . Full Trace Events . | . . . . Feedback Events . | . . . . Feedback Blocked . | . . . . Robot Schematics Acquired . | . . . . Robots Built . | . . . . Authchips . | . . . . Time . | . . . . Total Robot Build Rating . | . . . . Part Schematics Acquired . | . . . . Parts Built . | . . . . Authchips . | . . . . Time . | . . . . Total Part Build Rating . | . . . . Parts Repaired . | . . . . Time . | . . . . Parts Recycled . | . . . . Recycled Matter . | . . . . Retrieved Matter . | . . . . Retrieved Components . | . . . . Parts Scanalyzed . | . . . . Part Schematics Acquired . | . . . . Parts Damaged . | . . . . Bothacking | -11 -10 -10 -10 ------------ Run | Jun Mat Min Sub Used RIF Installer . | . . . . Robots Hacked . | . . . . Non-combat . | . . . . Combat . | . . . . Robot Hacks Applied . | . . . . Relay Couplers Released . | . . . . Fabnet Peak Effective % . | . . . . Robots Rewired . | . . . . Allies Hacked . | . . . . Hacks Repelled . | . . . . Allies | -11 -10 -10 -10 -------- Run | Jun Mat Min Sub Total Allies . | . . . . Largest Group . | . . . . Highest-Rated Group . | . . . . Highest-Rated Ally . | . . . . Total Orders . | . . . . Ally Attacks . | . . . . Total Damage . | . . . . Kills . | . . . . Allies Corrupted . | . . . . Allies Melted . | . . . . Intel | -11 -10 -10 -10 ------- Run | Jun Mat Min Sub Robot Analysis Total 1 | . 1 . . Derelict Logs Recovered 2 | . . 1 1 Drone Launches . | . . . . Drone Recoveries . | . . . . Exploration | -11 -10 -10 -10 ------------- Run | Jun Mat Min Sub Turns Passed 5042 | 72 3068 272 1630 Spaces Moved 1803 | 15 1124 104 560 Core . | . . . . Treads 381 | . . 93 288 Legs 1150 | 15 1124 11 . Wheels 272 | . . . 272 Hover . | . . . . Flight . | . . . . Fastest Speed 120 | 120 120 240 155 Average Speed 233 | 120 250 244 198 Slowest Speed 470 | 120 260 470 240 Overloaded Moves . | . . . . Propulsion Burnouts . | . . . . Robots Hopped . | . . . . Cave-ins Triggered . | . . . . Exploration Rate (%) 42 | 3 96 31 40 Regions Visited 3 Branch Regions 2 Pre-discovered Areas . | . . . . Known Exits Taken . | . . . . Unknown Exits Taken 3 | 1 1 1 . Scrap Searched 1 | . . . 1 Spaces Dug 3 | . 3 . . Terrain Destroyed 18 | . 9 . 9 Melee 3 | . 3 . . Projectile . | . . . . AOE 15 | . 6 . 9 Terrain Rammed . | . . . . Walls Destroyed . | . . . . Machines Disabled . | . . . . Actions | -11 -10 -10 -10 --------- Run | Jun Mat Min Sub Total 2455 | 60 1257 120 1018 Wait 487 | 40 33 2 412 Move 1800 | 14 1123 103 560 Hop . | . . . . Pick Up 24 | 1 18 3 2 Fast Attach 6 | 1 3 2 . Attach 7 | . 1 1 5 Detach 1 | . . 1 . Swap 18 | . 9 1 8 Drop 13 | . 9 4 . Fire 78 | 4 48 3 23 Melee 18 | . 10 . 8 Ram . | . . . . Kick 3 | . 3 . . Crush . | . . . . Escape Stasis . | . . . . Rewire . | . . . . Trap . | . . . . Miscellaneous . | . . . . Route ------- -11/Junkyard -10/Materials (discovered 4 exits: [*Mat x3] / [*Min]) -10/Mines -10/Subcaves History --------- Turn | Location | Event 1 | -11/Junkyard | Discovered new exit (range 2) 73 | -11/Junkyard | Entered Materials 309 | -10/Materials | Build established: Mutant 335 | -10/Materials | Discovered new exit (range 8) 460 | -10/Materials | Discovered new exit (range 15) 931 | -10/Materials | Discovered new exit (range 15) 2757 | -10/Materials | Discovered new exit (range 16) 3141 | -10/Materials | Entered Mines 3376 | -10/Mines | Learned Materials stockpile data 3401 | -10/Mines | Discovered new exit (range 6) 3413 | -10/Mines | Entered Subcaves 3491 | -10/Subcaves | A swath of the cavern ceiling suddenly collapsed 3632 | -10/Subcaves | Disturbed a concealed Subdweller 4881 | -10/Subcaves | A swath of the cavern ceiling suddenly collapsed 4983 | -10/Subcaves | Shifting Twisted Machinery released Battle Rifle 5010 | -10/Subcaves | Learned Materials terminal intel 5018 | -10/Subcaves | A Subdweller sparked back to life 5018 | -10/Subcaves | A Subdweller sparked back to life 5018 | -10/Subcaves | A Subdweller sparked back to life 5027 | -10/Subcaves | Core integrity fell below 50% 5035 | -10/Subcaves | Core integrity fell below 20% 5043 | -10/Subcaves | Destroyed by LY-DRI(R) with Subdweller Machine Gun Last Messages --------------- 04912_ Searching scrap... 04912_ Found Battle Cannon. 04912_ Found 16 Matter. 04913_ Acquired 16 matter. 04915_ Acquired Battle Cannon. Battle Rifle falls loose from the Twisted Machinery. 05010_ Acquired derelict log, extracted data. Data stored: Materials terminal intel. 05018_ Sneak attack on LY-DRI(R). 05018_ LY-DRI(R) creaks and sparks as it begins to move. 05018_ N8-4UX(R) creaks and sparks as it begins to move. 05018_ O9-2SM(R) creaks and sparks as it begins to move. 05025_ O9-2SM(R) knocked back. 05027_ O9-2SM(R) affixes Scrap Shield Fragment to Scrap Shield. 05032_ Wheel destroyed. 05032_ Lgt. Treads destroyed. 05032_ O9-2SM(R) destroyed. 05038_ LY-DRI(R) affixes Scrap Shield Fragment to Scrap Shield. 05039_ LY-DRI(R) misfires. 05041_ Ion Engine destroyed. Map ----- +----------------------------------------------------+ | ????????????????# ##### #??## ## ##????????? | | ????????????????# ## #?#### ## ##????""??? | | ????????????????## # ### ### ### "#####""""" | | ?????????????????# ## ### ###" """""""" | | ?????????????????## # ## ### """""""" ? | | ??????????????????## ### ### " """""#?? | | ???????????????????## ### ### " ##? | | ????????????????????# ## ## "" ## | | ????????????????????# # "" # | | ????????????????????### ###### ##### # | | ??????????????????????### ##????####### | | ????????????????????????# #?????## ### | | ????????????????????##??## #??#### ##? | | ????????????????????# #??######?## #? | | ????????????????????# ?????????# #? | | ????????????????????# ########## ##? | | ?????????????????????# ##?? | | ?????????????????????# #??? | | ???????????????????### ##??? | | ??????????????????? #???? | | ???????????????????? ### ### #???? | | ??????????????????????# ??# #?## #???? | | ??????????????????????# ### ## #??# ##???? | | ?????????????????????## ## ####??#####????? | | ?????????????????????# % # #?????????????? | | ?????????????????????# @ R= ## #????????? | | ?????????????????????# !% ## #????????? | | ?????????????????????## *R< ##? #???????? | | ??????????????????????# % # #?? #???????? | | ??????????????????????##< & ###??# #???????? | | ???????????????????????#< <##?????# #???????? | | ???????????????????????######??????? #??????? | | ???????????????????????????????????? #####??????? | | ?????????????????????????????????????##??????????? | | ?????????????????????????????????????????????????? | | ?????????????????????????????????????????????????? | | ?????????????????????????????????????????????????? | | ?????????????????????????????????????????????????? | | ?????????????????????????????????????????????????? | | ?????????????????????????????????????????????????? | | ?????????????????????????????????????????????????? | | ?????????????????????????????????????????????????? | | ?????????????????????????????????????????????????? | | ?????????????????????????????????????????????????? | | ?????????????????????????????????????????????????? | | ?????????????????????????????????????????????????? | | ?????????????????????????????????????????????????? | | ?????????????????????????????????????????????????? | | ?????????????????????????????????????????????????? | | ?????????????????????????????????????????????????? | +----------------------------------------------------+ Best States ------------- Heat Dissipation 35 Energy Generation 10 Energy Capacity 250 Matter Stores 300 Matter Capacity 300 Sight Range 16 Terrain Scan Density 10 Evasion (%) 55 Recoil Reduction 2 Item Schematics ----------------- None Robot Schematics ------------------ None Fabricated ------------ Nothing Alien Tech Used ----------------- None Achievements -------------- None Challenges ------------ None Game ------ Seed PiercingBiometalMantle Manual? 0 Play Time 00:25:41 Cumulative 46.9 hours Start 2023.08.01 @ 18:38:35 End 2023.08.01 @ 19:08:29 Sessions 1 Manual Loads 0 Difficulty Rogue Special Mode None Game No. 31 Rogue 31 Adventurer 0 Explorer 0 Win Type - Total 1 Types 1/0/0/0/0/0/0/0/0 Lore% 25 Gallery% 45 Achievement% 30 Wizard Run 0 Options --------- ASCII 0 Keyboard 1 Movement Numpad Keybinds 0 Fullscreen 1 Font 24/Smallcaps Map View 76x50 Tactical HUD 1 Map Filters NONE Filters NONE Steam 1 RUN: 9a5d4492-022e-4ecc-a3ca-93ab3b5bb7ab